bitfinex-derivatives/quotes_SOLF0:USTF0_20230904
["timestamp","ask_amount","ask_price","bid_price","bid_amount"]
[1693795261894,0.45454546,19.831,19.816,19.8212]
[1693795262194,15.13,19.835,19.816,19.8212]
[1693795262397,0.45454546,19.834,19.816,19.8212]
[1693795262597,15.13,19.832,19.816,19.8212]
[1693795262796,0.45454546,19.831,19.816,19.8212]
[1693795263095,0.45454546,19.83,19.816,19.8212]
[1693795263291,15.13,19.835,19.816,19.8212]
[1693795263592,0.0613767,19.83,19.816,19.8212]
[1693795265989,15.13,19.835,19.816,19.8212]
[1693795266187,0.45454546,19.834,19.816,19.8212]
[1693795266387,15.13,19.835,19.816,19.8212]
[1693795266593,0.45454546,19.834,19.816,19.8212]
[1693795266795,15.13,19.835,19.816,19.8212]
[1693795266995,21.6062,19.837,19.816,19.8212]
[1693795266996,0.45454546,19.834,19.816,19.8212]
[1693795267298,15.13,19.835,19.825,0.06695558]
[1693795267499,0.45454546,19.834,19.825,0.06695558]
[1693795267801,15.13,19.832,19.825,0.06695558]
[1693795268101,0.45454546,19.831,19.816,19.8212]
[1693795268399,0.45454546,19.83,19.816,19.8212]
[1693795268601,15.13,19.835,19.816,19.8212]
[1693795268794,0.45454546,19.834,19.812,26.46886029]
[1693795268996,15.13,19.832,19.812,26.46886029]
[1693795269194,0.45454546,19.831,19.812,26.46886029]
[1693795269498,21.6062,19.837,19.812,26.46886029]
[1693795269499,0.45454546,19.83,19.812,26.46886029]
[1693795269696,15.13,19.835,19.812,26.46886029]
[1693795269997,0.45454546,19.834,19.812,26.46886029]
[1693795270192,15.13,19.835,19.812,26.46886029]
[1693795270499,0.45454546,19.834,19.812,26.46886029]
[1693795275496,0.45454546,19.834,19.813,21.2721]
[1693795276204,0.45454546,19.834,19.812,26.46886029]
[1693795276402,0.45454546,19.834,19.813,21.2721]
[1693795276800,0.45454546,19.834,19.812,26.46886029]
[1693795277004,0.45454546,19.834,19.813,21.2721]
[1693795277301,0.45454546,19.834,19.812,26.46886029]
[1693795277693,0.45454546,19.834,19.813,19.9715]
[1693795278207,0.45454546,19.834,19.812,26.46886029]
[1693795278497,0.45454546,19.834,19.813,19.9715]
[1693795278905,0.45454546,19.834,19.812,26.46886029]
[1693795279198,0.45454546,19.834,19.813,19.9715]
[1693795279405,0.06139217,19.825,19.813,19.9715]
[1693795279703,0.06139217,19.825,19.812,26.46886029]
[1693795279896,0.06139217,19.825,19.813,19.9715]
[1693795280405,0.06139217,19.825,19.812,26.46886029]
[1693795280605,0.06139217,19.825,19.813,21.7928]
[1693795282803,0.45454546,19.834,19.813,21.7928]
[1693795282998,41.05192184,19.834,19.813,21.7928]
[1693795283202,15.13,19.832,19.813,21.7928]
[1693795283402,0.45454546,19.831,19.813,21.7928]
[1693795283702,0.45454546,19.83,19.813,21.7928]
[1693795283903,0.45454546,19.834,19.813,21.7928]
[1693795285206,0.45454546,19.834,19.813,21.8528]
[1693795285408,15.13,19.832,19.813,21.8528]
[1693795285717,0.45454546,19.831,19.813,0.06]
[1693795286003,22.29254975,19.831,19.814,20.0803]
[1693795286209,0.45454546,19.83,19.813,0.06]
[1693795291415,0.45454546,19.834,19.813,0.06]
[1693795291803,500.0,19.844,19.813,0.06]
[1693795291804,15.13,19.832,19.813,0.06]
[1693795292003,0.45454546,19.831,19.813,0.06]
[1693795292207,15.13,19.843,19.813,0.06]
[1693795292208,0.45454546,19.837,19.813,0.06]
[1693795293011,0.45454546,19.837,19.812,26.46886029]
[1693795293513,15.13,19.835,19.812,26.46886029]
[1693795293712,0.45454546,19.834,19.812,26.46886029]
[1693795293913,6.44052305,19.842,19.812,26.46886029]
[1693795294113,0.06139217,19.825,19.812,26.46886029]
[1693795294614,0.45454546,19.841,19.812,26.46886029]
[1693795294814,6.4400639,19.841,19.812,26.46886029]
[1693795295014,0.45454546,19.84,19.812,26.46886029]
[1693795298316,0.45454546,19.84,19.812,66.58182044]
[1693795305619,0.45454546,19.84,19.812,337.79320692]
[1693795305913,0.45454546,19.84,19.812,66.58182044]
[1693795306323,31.6416739,19.84,19.812,66.58182044]
[1693795306524,0.45454546,19.839,19.812,66.58182044]
[1693795307022,25.20161,19.84,19.813,500.0]
[1693795307319,39.48361068,19.84,19.814,271.21193535]
[1693795307520,0.45454546,19.842,19.815,9.2666957]
[1693795309020,0.06139226,19.825,19.814,21.205]
[1693795309421,0.06139226,19.825,19.813,0.22727272]
[1693795309621,0.06139226,19.825,19.814,21.4785]
[1693795309821,0.06139226,19.825,19.814,292.69043535]
[1693795310519,39.6651538,19.843,19.823,500.0]
[1693795310726,15.13,19.861,19.824,271.07122233]
[1693795310727,0.45454546,19.852,19.824,271.07122233]
[1693795311028,15.13,19.85,19.824,271.07122233]
[1693795311327,20.9174,19.855,19.824,271.07122233]
[1693795311328,0.45454546,19.853,19.824,271.07122233]
[1693795311627,0.45454546,19.852,19.825,271.01590176]
[1693795311822,15.13,19.85,19.826,271.01590176]
[1693795312027,0.45454546,19.854,19.827,271.01590176]
[1693795312225,0.45454546,19.854,19.825,25.22068]
[1693795312431,0.45454546,19.854,19.825,177.52068]
[1693795312724,55.15017145,19.861,19.826,280.2762428]
[1693795312725,2.65689985,19.848,19.826,280.2762428]
[1693795312928,2.65689985,19.848,19.826,271.01432489]
[1693795313126,2.65689985,19.848,19.827,9.26152383]
[1693795313528,2.65689985,19.848,19.827,271.01432489]
[1693795313725,2.65689985,19.848,19.825,25.22068]
[1693795313726,2.65689985,19.848,19.828,271.01432489]
[1693795313926,2.65689985,19.848,19.825,25.22068]
[1693795314122,2.65689985,19.848,19.826,9.26164602]
[1693795315833,2.65689985,19.848,19.827,21.6866]
[1693795316235,2.65689985,19.848,19.823,310.83543645]
[1693795316438,2.65689985,19.848,19.824,301.92356213]
[1693795316640,2.65689985,19.848,19.825,280.23696213]
[1693795316938,2.65689985,19.848,19.826,9.26186291]
[1693795317134,2.65689985,19.848,19.823,271.20413909]
[1693795317340,2.65689985,19.848,19.824,9.26191666]
[1693795317539,2.65689985,19.848,19.824,30.88311666]
[1693795317741,2.65689985,19.848,19.825,9.26191666]
[1693795318337,2.65689985,19.848,19.824,21.6212]
[1693795318840,2.65689985,19.848,19.823,0.22727272]
[1693795319142,15.12,19.846,19.823,9.49117669]
[1693795319643,15.12,19.846,19.823,31.11237669]
[1693795319841,15.12,19.846,19.823,21.84847272]
[1693795320344,2.65689985,19.848,19.823,21.84847272]
[1693795320634,2.65689985,19.848,19.822,39.62499999]
[1693795320836,2.65689985,19.848,19.823,21.0454]
[1693795322545,15.57454546,19.85,19.823,21.0454]
[1693795322942,21.0888,19.849,19.823,21.0454]
[1693795323447,40.76345546,19.85,19.823,21.0454]
[1693795323651,21.1176,19.849,19.823,21.0454]
[1693795327154,40.76345546,19.85,19.823,21.0454]
[1693795327458,15.57454546,19.85,19.823,21.0454]
[1693795329054,15.57454546,19.85,19.824,9.26382273]
[1693795330056,15.57454546,19.85,19.824,34.48577273]
[1693795330255,15.57454546,19.85,19.825,9.26382273]
[1693795333259,15.57454546,19.85,19.824,25.22195]
[1693795333758,37.16364546,19.85,19.824,25.22195]
[1693795334960,37.16364546,19.85,19.823,21.0454]
[1693795335160,15.57454546,19.85,19.823,21.0454]
[1693795336458,15.57454546,19.85,19.824,9.2618126]
[1693795339455,15.57454546,19.85,19.824,34.4837626]
[1693795339661,15.57454546,19.85,19.825,9.2618126]
[1693795343259,20.1329,19.849,19.823,21.0454]
[1693795343564,15.57454546,19.85,19.823,21.0454]
[1693795345964,15.57454546,19.85,19.824,34.48389304]
[1693795346261,15.57454546,19.85,19.825,9.26194304]
[1693795348665,15.57454546,19.85,19.826,9.26194304]
[1693795348859,15.57454546,19.85,19.823,21.0454]
[1693795349067,15.57454546,19.85,19.824,9.26193848]
[1693795350372,15.57454546,19.85,19.824,34.48388848]
[1693795350565,15.57454546,19.85,19.825,9.26193848]
[1693795352061,36.87174546,19.85,19.825,9.26193848]
[1693795354264,36.87174546,19.85,19.824,25.22195]
[1693795355169,36.87174546,19.85,19.823,21.0454]
[1693795355474,15.57454546,19.85,19.824,9.26334854]
[1693795355870,21.681,19.849,19.824,9.26334854]
[1693795356570,21.681,19.849,19.823,21.0454]
[1693795356765,15.57454546,19.85,19.823,21.0454]
[1693795361478,0.45454546,19.849,19.823,21.0454]
[1693795368182,0.45454546,19.849,19.824,9.26300913]
[1693795370484,0.45454546,19.849,19.825,25.22068]
[1693795370685,0.45454546,19.849,19.826,9.26300913]
[1693795373374,0.45454546,19.849,19.827,25.21813]
[1693795373584,0.45454546,19.849,19.828,9.26300913]
[1693795379387,0.45454546,19.849,19.829,25.21559]
[1693795379689,0.45454546,19.848,19.829,25.21559]
[1693795379884,0.45454546,19.854,19.829,296.24609639]
[1693795380087,6.43193119,19.86,19.829,296.24609639]
[1693795380283,15.12,19.858,19.829,296.24609639]
[1693795380483,15.12,19.856,19.829,296.24609639]
[1693795380683,0.45454546,19.855,19.829,296.24609639]
[1693795380895,6.43193467,19.86,19.83,271.03050639]
[1693795381096,15.12,19.858,19.831,271.03050639]
[1693795381295,61.37067254,19.861,19.832,432.59034289]
[1693795381296,15.12,19.856,19.832,432.59034289]
[1693795381493,0.45454546,19.856,19.833,271.03050639]
[1693795381794,0.45454546,19.86,19.834,186.76694914]
[1693795381996,0.45454546,19.86,19.835,305.49618553]
[1693795382193,0.45454546,19.86,19.836,271.03050639]
[1693795382392,0.45454546,19.86,19.837,271.03050639]
[1693795382592,0.45454546,19.86,19.838,271.03050639]
[1693795382789,0.45454546,19.86,19.835,25.20796]
[1693795382790,0.45454546,19.86,19.839,271.03050639]
[1693795382996,0.45454546,19.86,19.835,25.20796]
[1693795385089,0.45454546,19.86,19.833,292.20095579]
[1693795385394,0.45454546,19.86,19.834,270.85555579]
[1693795385695,0.45454546,19.86,19.833,21.3454]
[1693795389487,15.12,19.858,19.833,21.3454]
[1693795389793,19.77,19.869,19.833,21.3454]
[1693795389794,0.45454546,19.868,19.841,152.3]
[1693795389987,0.45454546,19.868,19.834,9.48422775]
[1693795389988,15.12,19.866,19.843,152.3]
[1693795390296,0.45454546,19.866,19.844,432.46388762]
[1693795390487,15.12,19.871,19.846,152.3]
[1693795390689,15.12,19.883,19.847,280.1788067]
[1693795390889,6.42376518,19.882,19.848,305.14298398]
[1693795391094,15.12,19.88,19.849,805.14171398]
[1693795391291,0.45454546,19.879,19.85,295.88870233]
[1693795391593,15.12,19.883,19.851,25.18764]
[1693795391594,0.45454546,19.878,19.851,25.18764]
[1693795391794,15.12,19.876,19.851,25.18764]
[1693795391991,0.45454546,19.876,19.851,25.18764]
[1693795392193,6.42377697,19.882,19.851,25.18764]
[1693795392498,15.12,19.88,19.852,9.24973633]
[1693795392696,0.45454546,19.879,19.853,25.18511]
[1693795392899,0.45454546,19.878,19.853,25.18511]
[1693795393194,15.12,19.876,19.853,25.18511]
[1693795393394,0.45454546,19.876,19.853,25.18511]
[1693795393594,0.45454546,19.882,19.853,25.18511]
[1693795395088,0.45454546,19.882,19.854,18.2492]
[1693795395498,0.45454546,19.882,19.855,25.18257]
[1693795396199,6.42377161,19.882,19.855,25.18257]
[1693795396395,15.12,19.88,19.855,25.18257]
[1693795396591,0.45454546,19.879,19.855,25.18257]
[1693795396800,6.42382044,19.882,19.855,25.18257]
[1693795396993,15.12,19.88,19.855,25.18257]
[1693795397195,0.45454546,19.879,19.855,25.18257]
[1693795397391,0.45454546,19.878,19.855,25.18257]
[1693795397597,15.12,19.876,19.855,25.18257]
[1693795397798,15.12,19.88,19.855,25.18257]
[1693795397999,61.37699742,19.884,19.855,25.18257]
[1693795398000,0.45454546,19.879,19.855,25.18257]
[1693795398200,0.45454546,19.878,19.855,25.18257]
[1693795398501,15.12,19.876,19.855,25.18257]
[1693795398801,0.45454546,19.876,19.855,25.18257]
[1693795398990,6.423847,19.882,19.855,25.18257]
[1693795399192,15.12,19.88,19.855,25.18257]
[1693795399497,0.45454546,19.879,19.855,25.18257]
[1693795399801,0.45454546,19.878,19.855,25.18257]
[1693795400000,15.12,19.876,19.855,64.51422575]
[1693795400202,15.12,19.88,19.855,64.51422575]
[1693795400499,6.4239088,19.879,19.855,25.18257]
[1693795400702,0.45454546,19.878,19.855,25.18257]
[1693795412405,41.06683145,19.878,19.855,25.18257]
[1693795412605,15.1,19.876,19.855,25.18257]
[1693795412811,15.1,19.874,19.855,25.18257]
[1693795413009,561.37699742,19.884,19.855,25.18257]
[1693795413010,0.45454546,19.873,19.855,25.18257]
[1693795413309,40.12078509,19.88,19.855,25.18257]
[1693795413507,15.1,19.88,19.855,25.18257]
[1693795413710,0.45454546,19.88,19.855,25.18257]
[1693795413915,6.4237643,19.882,19.855,25.18257]
[1693795414211,15.1,19.88,19.855,25.18257]
[1693795414612,15.55454546,19.883,19.855,25.18257]
[1693795414811,6.42379204,19.882,19.855,25.18257]
[1693795415011,15.1,19.88,19.855,25.18257]
[1693795415508,0.45454546,19.88,19.855,25.18257]
[1693795415808,6.42380336,19.882,19.855,25.18257]
[1693795416019,15.1,19.88,19.855,25.18257]
[1693795416516,0.45454546,19.88,19.855,25.18257]
[1693795416717,6.42382002,19.882,19.855,25.18257]
[1693795416915,15.1,19.88,19.855,25.18257]
[1693795417515,0.45454546,19.88,19.855,25.18257]
[1693795417707,6.42382899,19.882,19.855,25.18257]
[1693795417907,15.1,19.88,19.855,25.18257]
[1693795418112,6.42382899,19.879,19.855,25.18257]
[1693795418412,0.45454546,19.878,19.855,25.18257]
[1693795419215,15.1,19.876,19.855,25.18257]
[1693795419415,15.1,19.874,19.855,25.18257]
[1693795419617,0.45454546,19.873,19.855,25.18257]
[1693795419818,15.1,19.871,19.855,25.18257]
[1693795420015,0.45454546,19.87,19.855,25.18257]
[1693795420320,6.42418595,19.882,19.855,25.18257]
[1693795420515,15.1,19.88,19.855,25.18257]
[1693795420909,0.45454546,19.88,19.855,25.18257]
[1693795421115,15.1,19.883,19.855,25.18257]
[1693795421116,6.42377675,19.882,19.855,25.18257]
[1693795421317,5.96923129,19.882,19.855,25.18257]
[1693795421518,15.1,19.88,19.855,25.18257]
[1693795422021,15.55454546,19.883,19.855,25.18257]
[1693795422318,84.09,19.876,19.864,84.09]
[1693795422619,84.09,19.876,19.865,43.41469]
[1693795422821,84.09,19.876,19.865,25.16989]
[1693795426419,84.09,19.878,19.866,84.09]
[1693795426623,84.09,19.878,19.867,25.16736]
[1693795431122,84.09,19.878,19.866,84.09]
[1693795431827,84.09,19.878,19.866,109.25862]
[1693795433032,15.1,19.876,19.866,109.25862]
[1693795435729,84.09,19.874,19.866,25.16862]
[1693795435934,84.09,19.874,19.847,0.22727272]
[1693795435935,15.1,19.866,19.855,102.3239]
[1693795439729,15.1,19.864,19.855,18.2339]
[1693795439933,15.1,19.864,19.852,84.09]
[1693795441428,39.56092647,19.869,19.846,18.2718]
[1693795441429,84.09,19.861,19.849,84.09]
[1693795441630,0.45454546,19.86,19.849,84.09]
[1693795452546,84.09,19.858,19.846,84.09]
[1693795460451,15.1,19.856,19.845,84.09]
[1693795464149,15.1,19.856,19.845,84.15]
[1693795466049,84.09,19.852,19.845,0.06]
[1693795467857,40.84528059,19.86,19.845,0.06]
[1693795468057,75.86,19.85,19.845,0.06]
[1693795471653,75.86,19.85,19.846,0.76071349]
[1693795472156,0.69256539,19.849,19.846,0.76071349]
[1693795482654,75.86,19.848,19.846,0.76071349]
[1693795487363,75.86,19.848,19.841,75.86]
[1693795489667,75.86,19.848,19.843,0.77102676]
[1693795489869,15.11,19.843,19.833,75.86]
[1693795490070,75.86,19.84,19.833,75.86]
[1693795490270,75.86,19.838,19.83,75.86]
[1693795490670,75.86,19.837,19.829,75.86]
[1693795491369,75.86,19.839,19.832,75.86]
[1693795492666,75.86,19.842,19.835,75.86]
[1693795493264,0.77152548,19.837,19.835,75.86]
[1693795495175,0.77152548,19.837,19.833,75.86]
[1693795499882,0.77152548,19.837,19.833,76.61093358]
[1693795503791,0.0613617,19.835,19.833,76.61093358]
[1693795506193,0.77152548,19.837,19.833,76.61093358]
[1693795506789,0.77152548,19.837,19.833,0.75093358]
[1693795513190,75.86,19.836,19.833,0.75093358]
[1693795514997,15.12,19.835,19.833,0.75093358]
[1693795515195,75.86,19.836,19.831,30.45372553]
[1693795515499,75.86,19.832,19.825,75.86]
[1693795516793,0.75556107,19.83,19.825,75.86]
[1693795522804,75.86,19.829,19.823,75.86]
[1693795523004,75.86,19.829,19.824,9.26270115]
[1693795523907,75.86,19.829,19.825,0.77218774]
[1693795528306,75.86,19.827,19.825,0.77218774]
[1693795529108,75.86,19.827,19.82,75.86]
[1693795529407,75.86,19.827,19.821,9.26508284]
[1693795530710,75.86,19.827,19.82,75.86]
[1693795530913,0.69790019,19.826,19.82,75.86]
[1693795532712,0.69790019,19.826,19.821,9.26499287]
[1693795533310,75.86,19.825,19.818,115.92454865]
[1693795533511,75.86,19.825,19.819,9.26497873]
[1693795540517,75.86,19.82,19.819,9.26497873]
[1693795540812,75.86,19.82,19.813,116.4648387]
[1693795541016,75.86,19.82,19.814,271.12951706]
[1693795541218,75.86,19.82,19.813,75.86]
[1693795543615,75.86,19.82,19.813,346.9890333]
[1693795543920,75.86,19.82,19.814,271.1290333]
[1693795544120,75.86,19.82,19.813,75.86]
[1693795544316,76.68283645,19.82,19.813,75.86]
[1693795544720,75.86,19.819,19.813,271.12323251]
[1693795544913,75.86,19.819,19.814,271.12323251]
[1693795545223,75.86,19.819,19.812,116.48159434]
[1693795546114,75.86,19.819,19.812,75.86]
[1693795553128,76.68283645,19.82,19.813,75.86]
[1693795560031,75.86,19.818,19.817,12.19319877]
[1693795565536,75.86,19.818,19.81,347.03415341]
[1693795565828,0.82283645,19.82,19.811,36.20969509]
[1693795566027,75.86,19.812,19.811,26.94097374]
[1693795569334,0.80067386,19.813,19.811,26.94097374]
[1693795592348,75.86,19.812,19.811,26.94097374]
[1693795597459,0.80067386,19.813,19.811,26.94097374]
[1693795600159,75.86,19.812,19.806,271.22443886]
[1693795600366,75.86,19.812,19.805,40.17347452]
[1693795600367,75.86,19.812,19.807,280.49430574]
[1693795600663,75.86,19.812,19.808,280.49430574]
[1693795600856,75.86,19.812,19.809,9.26986688]
[1693795601063,75.86,19.812,19.804,115.90841149]
[1693795601263,75.86,19.812,19.805,9.27035862]
[1693795602867,15.14,19.811,19.805,9.27035862]
[1693795603059,75.86,19.809,19.805,9.27035862]
[1693795603262,75.86,19.809,19.806,9.27035862]
[1693795603463,75.86,19.809,19.807,9.27035862]
[1693795603658,75.86,19.809,19.808,9.27035862]
[1693795603866,75.86,19.809,19.803,9.27035862]
[1693795604066,75.86,19.809,19.802,75.86]
[1693795604067,75.86,19.809,19.804,9.27035862]
[1693795604264,75.86,19.809,19.805,9.27035862]
[1693795604465,75.86,19.809,19.806,9.27035862]
[1693795604676,75.86,19.809,19.803,9.27035862]
[1693795604868,75.86,19.809,19.804,9.27035862]
[1693795605069,75.86,19.809,19.805,9.27035862]
[1693795605371,75.86,19.809,19.806,9.27035862]
[1693795605570,75.86,19.809,19.807,9.27035862]
[1693795605764,75.86,19.809,19.808,9.27035862]
[1693795605964,75.86,19.809,19.803,9.27035862]
[1693795609065,75.86,19.812,19.805,75.86]
[1693795609269,75.86,19.812,19.806,9.27035862]
[1693795610667,75.86,19.815,19.808,75.86]
[1693795610867,75.86,19.815,19.809,9.27035862]
[1693795613074,75.86,19.814,19.809,9.27035862]
[1693795613269,75.86,19.814,19.81,9.27035862]
[1693795613474,75.86,19.814,19.807,75.86]
[1693795613782,75.86,19.814,19.808,9.27031586]
[1693795614077,75.86,19.814,19.808,280.49460761]
[1693795614272,75.86,19.814,19.809,280.49460761]
[1693795614481,75.86,19.814,19.81,271.22429175]
[1693795614776,75.86,19.814,19.807,75.86]
[1693795614979,75.86,19.814,19.808,9.27027811]
[1693795617477,75.86,19.816,19.809,75.86]
[1693795617682,75.86,19.816,19.81,9.27027811]
[1693795619179,0.82331609,19.815,19.81,9.27027811]
[1693795622886,75.86,19.82,19.813,75.86]
[1693795623083,75.86,19.821,19.814,75.86]
[1693795623479,0.06141739,19.817,19.814,75.86]
[1693795624383,0.06141739,19.817,19.814,76.61022723]
[1693795624683,0.85889675,19.817,19.814,76.61022723]
[1693795625581,0.85889675,19.817,19.814,347.83200143]
[1693795625787,0.85889675,19.817,19.814,76.61022723]
[1693795626289,0.79747936,19.817,19.814,76.61022723]
[1693795628286,0.79747936,19.817,19.814,0.75022723]
[1693795628488,75.86,19.816,19.814,0.75022723]
[1693795631688,75.86,19.815,19.807,347.01558982]
[1693795631894,75.86,19.815,19.808,280.42658265]
[1693795632191,75.86,19.815,19.809,271.15558982]
[1693795632392,75.86,19.815,19.81,271.15558982]
[1693795632593,75.86,19.815,19.811,271.2427749]
[1693795632793,75.86,19.815,19.807,75.86]
[1693795633183,0.45454546,19.823,19.809,0.07506196]
[1693795633184,76.56701901,19.813,19.809,0.07506196]
[1693795633895,75.86,19.813,19.806,9.27105871]
[1693795634499,76.54726406,19.813,19.806,9.27105871]
[1693795635198,76.54726406,19.813,19.808,0.07525307]
[1693795642707,76.54726406,19.813,19.808,280.59221308]
[1693795643003,76.54726406,19.813,19.809,271.2459013]
[1693795643207,76.54726406,19.813,19.81,271.2459013]
[1693795643406,76.54726406,19.813,19.811,271.2459013]
[1693795643607,76.54726406,19.813,19.812,271.2459013]
[1693795644203,76.54726406,19.813,19.808,0.07525307]
[1693795645207,76.54726406,19.813,19.799,271.2459013]
[1693795645208,75.86,19.809,19.8,271.2459013]
[1693795645408,75.86,19.807,19.801,271.2459013]
[1693795645705,75.86,19.807,19.802,271.2459013]
[1693795645906,75.86,19.807,19.803,271.2459013]
[1693795646207,75.86,19.807,19.799,116.20712411]
[1693795646405,75.86,19.807,19.8,9.27434092]
[1693795646600,76.60143282,19.807,19.8,9.27434092]
[1693795647610,0.74143282,19.807,19.8,85.13434092]
[1693795647810,0.74143282,19.807,19.799,311.68783549]
[1693795647811,0.74143282,19.807,19.804,75.86]
[1693795649209,0.74143282,19.807,19.804,347.20071138]
[1693795649407,0.74143282,19.807,19.805,271.34071138]
[1693795649613,0.74143282,19.807,19.806,271.34071138]
[1693795649816,0.74143282,19.807,19.804,75.86]
[1693795653108,0.45454546,19.81,19.806,75.86]
[1693795653309,75.86,19.814,19.806,75.86]
[1693795653310,0.45454546,19.813,19.806,75.86]
[1693795653819,75.86,19.814,19.806,75.86]
[1693795654009,75.86,19.814,19.807,9.27092522]
[1693795654609,0.71895358,19.812,19.807,9.27092522]
[1693795655211,0.71895358,19.812,19.806,75.86]
[1693795656411,0.71895358,19.812,19.807,9.27087848]
[1693795658512,0.71895358,19.812,19.806,75.86]
[1693795658717,0.71895358,19.812,19.807,9.27083408]
[1693795658919,0.71895358,19.812,19.806,75.86]
[1693795659116,0.71895358,19.812,19.807,9.27081726]
[1693795663117,0.71895358,19.812,19.809,75.86]
[1693795673224,0.71895358,19.812,19.807,115.61782037]
[1693795674227,0.71895358,19.812,19.81,75.86]
[1693795675923,0.71895358,19.812,19.807,39.81782037]
[1693795675924,0.45454546,19.811,19.807,75.92]
[1693795677431,0.45454546,19.811,19.807,0.06]
[1693795678932,15.59454546,19.811,19.807,0.06]
[1693795681727,15.14,19.811,19.807,0.06]
[1693795682030,0.71895358,19.812,19.807,0.06]
[1693795683233,0.71895358,19.812,19.807,75.92]
[1693795698340,0.71895358,19.812,19.809,75.86]
[1693795709544,20.38994546,19.824,19.811,75.86]
[1693795709848,75.86,19.82,19.813,75.86]
[1693795710449,15.14,19.821,19.814,75.86]
[1693795723066,15.14,19.821,19.815,75.86]
[1693795728570,95.7954,19.824,19.817,75.86]
[1693795738778,75.86,19.819,19.812,75.86]
[1693795739080,75.86,19.816,19.808,75.86]
[1693795742478,15.14,19.813,19.806,75.86]
[1693795743682,15.14,19.811,19.806,75.86]
[1693795744385,91.0,19.811,19.804,75.86]
[1693795746187,75.86,19.811,19.804,75.86]
[1693795747189,0.72119172,19.809,19.804,75.86]
[1693795752991,0.72119172,19.809,19.807,75.86]
[1693795756590,0.72119172,19.809,19.805,75.86]
[1693795760396,0.72119172,19.809,19.802,75.86]
[1693795763198,0.72119172,19.809,19.801,75.86]
[1693795767897,0.72119172,19.809,19.804,75.86]
[1693795773103,0.72119172,19.809,19.802,97.47615329]
[1693795775615,15.15,19.804,19.802,75.86]
[1693795775810,75.86,19.803,19.79,75.86]
[1693795776015,75.86,19.8,19.79,75.86]
[1693795783116,75.86,19.8,19.791,75.86]
[1693795786219,75.86,19.796,19.788,133.39559151]
[1693795788521,500.0,19.806,19.788,57.53559151]
[1693795788522,75.86,19.793,19.788,57.53559151]
[1693795794718,75.86,19.793,19.786,75.86]
[1693795795527,0.8039372,19.791,19.786,75.86]
[1693795800329,76.6639372,19.791,19.784,75.86]
[1693795813037,75.86,19.789,19.783,75.86]
[1693795814139,15.16,19.788,19.783,75.86]
[1693795814434,15.16,19.788,19.784,0.74206103]
[1693795818238,75.86,19.787,19.784,0.74206103]
[1693795818442,75.86,19.785,19.778,75.86]
[1693795818638,75.86,19.785,19.779,9.28335206]
[1693795822247,0.75244367,19.784,19.779,9.28335206]
[1693795822547,0.75244367,19.784,19.781,75.86]
[1693795830853,75.86,19.787,19.781,75.86]
[1693795831053,75.86,19.789,19.783,75.86]
[1693795833052,75.86,19.788,19.782,75.86]
[1693795837251,0.69164075,19.787,19.782,75.86]
[1693795843162,0.69164075,19.787,19.783,75.86]
[1693795848359,0.69164075,19.787,19.786,75.86]
[1693795848964,75.86,19.793,19.786,75.86]
[1693795850767,0.802211,19.791,19.786,75.86]
[1693795850968,0.45454546,19.795,19.789,75.86]
[1693795851164,78.21014795,19.799,19.792,75.86]
[1693795851472,2.35014795,19.799,19.794,75.86]
[1693795860975,2.35014795,19.799,19.795,75.86]
[1693795862772,15.16,19.801,19.795,75.86]
[1693795863168,75.86,19.803,19.795,75.86]
[1693795863472,96.032,19.805,19.798,75.86]
[1693795863972,20.62654546,19.805,19.799,75.86]
[1693795864367,0.45454546,19.805,19.799,75.86]
[1693795867071,75.86,19.806,19.789,60.55793331]
[1693795867072,75.86,19.806,19.79,500.0]
[1693795867275,75.86,19.809,19.802,75.86]